fUSD/lending_fUSD_20240427
["ID","MTS","AMOUNT","RATE_DAILY","PERIOD"]
[323713422,1714182634005,-381.22,0.00012796,2]
[323713423,1714182634014,-500.0,0.00012796,2]
[323713424,1714182634024,-500.0,0.00012796,2]
[323713425,1714182634033,-500.0,0.00012796,2]
[323713426,1714182634042,-500.0,0.00012796,2]
[323713427,1714182634051,-500.0,0.00012796,2]
[323713428,1714182634060,-500.0,0.00012796,2]
[323713429,1714182634070,-262.35456362,0.00012796,2]
[323713430,1714182634079,-500.0,0.00012796,2]
[323713431,1714182634091,-500.0,0.00012796,2]
[323713432,1714182634099,-500.0,0.00012796,2]
[323713433,1714182634108,-500.0,0.00012796,2]
[323713434,1714182634117,-500.0,0.00012796,2]
[323713435,1714182634126,-500.0,0.00012796,2]
[323713436,1714182634135,-500.0,0.00012796,2]
[323713437,1714182634144,-500.0,0.00012796,2]
[323713438,1714182634153,-500.0,0.00012796,2]
[323713439,1714182634162,-176.5494936,0.00012796,2]
[323713440,1714182634171,-500.0,0.00012796,2]
[323713441,1714182634180,-500.0,0.00012796,2]
[323713442,1714182634189,-500.0,0.00012796,2]
[323713443,1714182634198,-506.1143356,0.00012796,2]
[323713444,1714182634207,-514.99835851,0.00012796,2]
[323713445,1714182634216,-633.18109269,0.00012796,2]
[323713446,1714182634225,-500.0,0.00012796,2]
[323713447,1714182634234,-532.31117696,0.00012796,2]
[323713448,1714182634243,-500.0,0.00012796,2]
[323713449,1714182634252,-500.0,0.00012796,2]
[323713450,1714182634261,-500.0,0.00012796,2]
[323713451,1714182634270,-509.29922738,0.00012796,2]
[323713452,1714182634279,-500.0,0.00012796,2]
[323713453,1714182634289,-515.00195223,0.00012796,2]
[323713454,1714182634298,-508.98850769,0.00012796,2]
[323713455,1714182634308,-500.0,0.00012796,2]
[323713456,1714182634317,-514.78021425,0.00012796,2]
[323713457,1714182634326,-504.50907771,0.00012796,2]
[323713458,1714182634337,-570.34487088,0.00012796,2]
[323713459,1714182634346,-523.90027744,0.00012796,2]
[323713460,1714182634355,-599.4,0.00012796,2]
[323713461,1714182634364,-500.0,0.00012796,2]
[323713462,1714182634373,-500.0,0.00012796,2]
[323713463,1714182634382,-505.12867093,0.00012796,2]
[323713464,1714182634391,-511.62074478,0.00012796,2]
[323713465,1714182634402,-500.0,0.00012796,2]
[323713466,1714182634412,-500.0,0.00012796,2]
[323713467,1714182634423,-2254.64,0.00012796,2]
[323713468,1714182634432,-505.0931974,0.00012796,2]
[323713469,1714182634443,-500.0,0.00012796,2]
[323713470,1714182634452,-500.0,0.00012796,2]
[323713471,1714182634461,-541.17880764,0.00012796,2]
[323713472,1714182634470,-1346.8,0.00012796,2]
[323713473,1714182634480,-500.0,0.00012796,2]
[323713474,1714182634490,-509.72243748,0.00012796,2]
[323713475,1714182634499,-509.18958075,0.00012796,2]
[323713476,1714182634508,-506.83688703,0.00012796,2]
[323713477,1714182634518,-500.0,0.00012796,2]
[323713478,1714182634527,-508.33178084,0.00012796,2]
[323713479,1714182634536,-500.0,0.00012796,2]
[323713480,1714182634545,-500.0,0.00012796,2]
[323713481,1714182634555,-513.72628559,0.00012796,2]
[323713482,1714182634564,-500.0,0.00012796,2]
[323713483,1714182634573,-505.55695213,0.00012796,2]
[323713484,1714182634583,-632.98669424,0.00012796,2]
[323713485,1714182634592,-646.19160858,0.00012796,2]
[323713486,1714182634602,-500.0,0.00012796,2]
[323713487,1714182634610,-549.7457136,0.00012796,2]
[323713488,1714182634619,-500.0,0.00012796,2]
[323713489,1714182634629,-500.0,0.00012796,2]
[323713490,1714182634638,-517.31947754,0.00012796,2]
[323713491,1714182634647,-573.97564323,0.00012796,2]
[323713492,1714182634656,-2186.91,0.00012796,2]
[323713493,1714182634665,-500.0,0.00012796,2]
[323713494,1714182634673,-500.0,0.00012796,2]
[323713495,1714182634683,-500.0,0.00012796,2]
[323713496,1714182634693,-507.48142194,0.00012796,2]
[323713497,1714182634702,-500.0,0.00012796,2]
[323713498,1714182634712,-500.0,0.00012796,2]
[323713499,1714182634721,-500.0,0.00012796,2]
[323713500,1714182634730,-500.0,0.00012796,2]
[323713501,1714182634740,-507.12950283,0.00012796,2]
[323713502,1714182634749,-505.00648698,0.00012796,2]
[323713503,1714182634759,-500.0,0.00012796,2]
[323713504,1714182634768,-500.0,0.00012796,2]
[323713505,1714182634778,-500.0,0.00012796,2]
[323713506,1714182634788,-506.16442785,0.00012796,2]
[323713507,1714182634797,-500.0,0.00012796,2]
[323713508,1714182634807,-500.90113964,0.00012796,2]
[323713509,1714182634816,-557.04421456,0.00012796,2]
[323713510,1714182634826,-500.0,0.00012796,2]
[323713511,1714182634837,-500.0,0.00012796,2]
[323713512,1714182634846,-500.0,0.00012796,2]
[323713513,1714182634855,-509.79639265,0.00012796,2]
[323713514,1714182634866,-500.0,0.00012796,2]
[323713515,1714182634875,-500.0,0.00012796,2]
[323713516,1714182634884,-500.0,0.00012796,2]
[323713517,1714182634893,-500.0,0.00012796,2]
[323713518,1714182634903,-530.27135603,0.00012796,2]
[323713519,1714182634912,-511.65892251,0.00012796,2]
[323713520,1714182634922,-500.0,0.00012796,2]
[323713521,1714182634932,-618.44029311,0.00012796,2]
[323713522,1714182634941,-500.0,0.00012796,2]
[323713523,1714182634950,-500.0,0.00012796,2]
[323713524,1714182634960,-500.0,0.00012796,2]
[323713525,1714182634970,-485.14317705,0.00012796,2]
[323713526,1714182634979,-628.81390458,0.00012796,2]
[323713527,1714182634989,-515.55580987,0.00012796,2]
[323713528,1714182634999,-500.0,0.00012796,2]
[323713529,1714182635009,-620.88019089,0.00012797,2]
[323713530,1714182635019,-500.0,0.00012797,2]
[323713531,1714182635028,-500.0,0.00012799,2]
[323713532,1714182635037,-26110.96510567,0.000128,2]
[323713533,1714182635047,-18685.1122415,0.000128,2]
[323713534,1714182635302,-301.53934037,0.000128,2]
[323713535,1714182635314,-3059.30672427,0.000128,2]
[323713536,1714182635323,-130.52835509,0.00012805,2]
[323713559,1714182638508,-309.91,0.00012805,2]
[323713560,1714182638571,-695.53658851,0.00012805,2]
[323713561,1714182638580,-740.09,0.00012836,2]
[323713562,1714182638591,-1436.9099,0.00012864,2]
[323713563,1714182638600,-2581.94318981,0.00012868,2]
[323713564,1714182638609,-198.42482801,0.00012869,2]
[323713565,1714182638618,-451.2162351,0.0001287,2]
[323713567,1714182638627,-573.7486467,0.00012878,2]
[323713568,1714182638636,-7500.0,0.00012888,2]
[323713570,1714182638645,-573.7486467,0.00012888,2]
[323713571,1714182638653,-500.0,0.00012889,2]
[323713572,1714182638662,-573.7486467,0.0001289,2]
[323713573,1714182638670,-155.69,0.00012896,2]
[323713574,1714182638679,-150.0,0.00012896,2]
[323713576,1714182638687,-353.52,0.00012896,2]
[323713577,1714182638696,-164.82,0.00012896,2]
[323713578,1714182638706,-150.0,0.00012896,2]
[323713579,1714182638715,-162.87,0.00012896,2]
[323713580,1714182638724,-162.48,0.00012896,2]
[323713581,1714182638734,-7229.0889,0.00012898,2]
[323713582,1714182638743,-1373.40855339,0.00012899,2]
[323713583,1714182638752,-500.0,0.00012899,2]
[323713584,1714182638761,-533.71294759,0.00012899,2]
[323713585,1714182638770,-500.0,0.00012899,2]
[323713586,1714182638778,-500.0,0.00012899,2]
[323713587,1714182638787,-500.0,0.00012899,2]
[323713588,1714182638796,-500.0,0.00012899,2]
[323713589,1714182638806,-500.0,0.00012899,2]
[323713590,1714182638815,-249.41765894,0.000129,2]
[323713592,1714182640205,-750.58234106,0.000129,2]
[323713593,1714182640215,-2564.0514,0.000129,2]
[323713594,1714182640223,-3079.95567135,0.000129,2]
[323713595,1714182640367,-3073.68282375,0.00011974,2]
[323713596,1714182640379,-3539.96717625,0.00011974,2]
[323713597,1714182640388,-1080.10202865,0.000129,2]
[323713598,1714182640398,-2427.68214948,0.000129,2]
[323713599,1714182640409,-701.87211918,0.000129,2]
[323713600,1714182640421,-411.12895278,0.000129,2]
[323713601,1714182640430,-818.13692808,0.000129,2]
[323713602,1714182640456,-6059.82034255,0.000129,2]
[323713603,1714182640466,-573.7486467,0.00012953,2]
[323713604,1714182640475,-573.7486467,0.00012953,2]
[323713605,1714182640485,-156.0,0.00012953,2]
[323713606,1714182640495,-508.48134645,0.00012962,2]
[323713607,1714182640505,-500.0,0.00012962,2]
[323713608,1714182640515,-500.0,0.00012962,2]
[323713609,1714182640524,-7641.20010575,0.00012963,2]
[323713610,1714182640533,-1038.5227148,0.00012963,2]
[323713611,1714182640542,-500.0,0.00012963,2]
[323713612,1714182640551,-500.0,0.00012963,2]
[323713613,1714182640560,-500.0,0.00012963,2]
[323713614,1714182640569,-500.0,0.00012963,2]
[323713615,1714182640578,-541.46,0.00012963,2]
[323713616,1714182640590,-500.0,0.00012963,2]
[323713617,1714182640599,-764.16,0.00012963,2]
[323713618,1714182640608,-500.0,0.00012963,2]
[323713619,1714182640617,-500.0,0.00012963,2]
[323713620,1714182640626,-1212.34,0.00012963,2]
[323713621,1714182640635,-500.0,0.00012963,2]
[323713622,1714182640644,-500.0,0.00012963,2]
[323713623,1714182640653,-500.0,0.00012963,2]
[323713624,1714182640662,-500.0,0.00012963,2]
[323713625,1714182640672,-500.0,0.00012963,2]
[323713626,1714182640682,-500.0,0.00012963,2]
[323713627,1714182640691,-553.16,0.00012963,2]
[323713628,1714182640700,-500.0,0.00012963,2]
[323713629,1714182640709,-500.0,0.00012963,2]
[323713630,1714182640719,-500.0,0.00012963,2]
[323713631,1714182640728,-1166.25,0.00012963,2]
[323713632,1714182640737,-671.61,0.00012963,2]
[323713633,1714182640747,-693.57,0.00012963,2]
[323713634,1714182640756,-568.92448071,0.00012963,2]
[323713635,1714182640766,-500.0,0.00012963,2]
[323713636,1714182640776,-500.0,0.00012963,2]
[323713637,1714182640786,-500.0,0.00012963,2]
[323713638,1714182640794,-412.98198693,0.00012963,2]
[323713639,1714182641018,-744.8235095,0.00012963,2]
[323713640,1714182641036,-1313.31,0.00012963,2]
[323713681,1714182643359,-636.60016149,0.00012853,2]
[323713682,1714182643420,-3749.7,0.00012853,2]
[323713685,1714182646216,-625.57,0.00012642,2]
[323713686,1714182646329,-408.15083534,0.00012642,2]
[323713687,1714182646339,-621.84015726,0.00012852,2]
[323713688,1714182646353,-3113.69983851,0.00012853,2]
[323713689,1714182646362,-500.0,0.00012899,2]
[323713690,1714182646371,-713.05939404,0.000129,2]
[323713691,1714182646380,-1182.65632032,0.00012963,2]
[323713694,1714182656074,1000.0,0.00025,120]
[323713695,1714182684855,1200.0,0.00025,120]
[323713701,1714183036014,441.0,0.00025,120]
[323713702,1714183131403,751.03638655,0.00015342,25]
[323713703,1714183188883,100000.0,0.00025,120]
[323713704,1714183316270,207.83486764,9.5e-05,2]
[323713705,1714183327696,621.84015726,9.5e-05,2]
[323713706,1714183364348,182.00410834,0.00025,120]
[323713707,1714183597619,1120.96414177,9.5e-05,2]
[323713708,1714183642651,207.83486764,9.5e-05,2]
[323713717,1714183833689,-298.55,9.512e-05,2]
[323713718,1714183833699,-155.0,0.00010655,2]
[323713719,1714183833708,-5031.2474502,0.00010656,2]
[323713720,1714183833717,-155.0,0.000109,2]
[323713722,1714183833727,-1250.0,0.00011,2]
[323713724,1714183833737,-200.0,0.00011,2]
[323713726,1714183833747,-207.83486764,0.00011287,2]
[323713729,1714183833761,-443.9573994,0.00011288,2]
[323713731,1714183833773,-1202.17671346,0.00011288,2]
[323713733,1714183833785,-351.29176101,0.00011288,2]
[323713736,1714183833811,-300.26081753,0.00011288,2]
[323713738,1714183833823,-310.61,0.00011288,2]
[323713741,1714183833835,-1970.62874043,0.00011288,2]
[323713743,1714183833845,-249.87,0.00011382,2]
[323713745,1714183833856,-1253.48,0.00011407,3]
[323713747,1714183833866,-188.55,0.00011422,2]
[323713748,1714183833876,-1069.41,0.00011445,2]
[323713750,1714183833886,-175.01,0.00011446,2]
[323713752,1714183833896,-224.99,0.00011446,2]
[323713754,1714183833907,-444.05,0.00011451,2]
[323713755,1714183833917,-961.05341164,0.00011503,2]
[323713756,1714183833928,-550.35,0.00011603,2]
[323713758,1714183833937,-1068.02,0.00011615,2]
[323713759,1714183833947,-298.55,0.00011776,2]
[323713760,1714183833959,-293.49,0.00011823,2]
[323713761,1714183833969,-5000.0,0.00012,2]
[323713762,1714183833978,-184.96,0.00012098,2]
[323713763,1714183833988,-300.0,0.000121,4]
[323713764,1714183833997,-600.0,0.000122,4]
[323713765,1714183834008,-28629.39878597,0.000123,2]
[323713766,1714183834027,-253.75560811,0.000123,2]
[323713767,1714183834038,-1336.84560592,0.000123,2]
[323713768,1714183834048,-76.31882608,0.000123,4]
[323713769,1714183834059,-823.68117392,0.000123,4]
[323713770,1714183834069,-534.0,0.00012301,2]
[323713771,1714183834079,-522.0,0.00012301,2]
[323713772,1714183834089,-1200.0,0.000124,4]
[323713773,1714183834098,-287.01422764,0.000125,2]
[323713774,1714183834113,-1500.0,0.000125,4]
[323713775,1714183834123,-150.0,0.0001258,2]
[323713776,1714183834133,-531.75213971,0.0001258,2]
[323713777,1714183834142,-210.0552,0.000126,2]
[323713778,1714183834152,-300.0,0.000126,4]
[323713779,1714183834161,-7500.0,0.0001268,2]
[323713780,1714183834171,-704.10221001,0.00012681,2]
[323713781,1714183834181,-25076.6622047,0.0001269,2]
[323713782,1714183834190,-1921.09861073,0.00012691,2]
[323713783,1714183834199,-3137.11949287,0.00012691,2]
[323713784,1714183834209,-32169.9319,0.000127,2]
[323713785,1714183834220,-300.0,0.000127,4]
[323713786,1714183834229,-1921.09861064,0.00012706,2]
[323713787,1714183834238,-3137.1194928,0.0001271,2]
[323713788,1714183834249,-1921.09861064,0.00012721,2]
[323713789,1714183834259,-3137.1194928,0.00012729,2]
[323713790,1714183834269,-1921.09861064,0.00012736,2]
[323713791,1714183834278,-3137.1194928,0.00012748,2]
[323713792,1714183834288,-1921.09861064,0.00012751,2]
[323713793,1714183834299,-1921.09861064,0.00012766,2]
[323713794,1714183834309,-3137.1194928,0.00012767,2]
[323713795,1714183834319,-168.32649069,0.0001277,2]
[323713796,1714183834331,-156.0,0.0001277,2]
[323713797,1714183834341,-156.0,0.0001277,2]
[323713798,1714183834350,-156.0,0.0001277,2]
[323713799,1714183834360,-156.0,0.0001277,2]
[323713800,1714183834371,-361.79291694,0.00012778,2]
[323713801,1714183834382,-500.0,0.00012779,2]
[323713802,1714183834392,-500.0,0.00012779,2]
[323713803,1714183834401,-500.0,0.00012779,2]
[323713804,1714183834411,-500.0,0.00012779,2]
[323713805,1714183834420,-500.0,0.00012779,2]
[323713806,1714183834429,-500.0,0.00012779,2]
[323713807,1714183834438,-500.0,0.00012779,2]
[323713808,1714183834448,-500.0,0.00012779,2]
[323713809,1714183834457,-500.0,0.00012779,2]
[323713810,1714183834466,-500.0,0.00012779,2]
[323713811,1714183834476,-548.90714489,0.00012779,2]
[323713812,1714183834486,-500.0,0.00012779,2]
[323713813,1714183834495,-500.0,0.00012779,2]
[323713814,1714183834506,-500.0,0.00012779,2]
[323713815,1714183834516,-500.0,0.00012779,2]
[323713816,1714183834526,-907.38,0.00012779,2]
[323713817,1714183834535,-500.0,0.00012779,2]
[323713818,1714183834544,-2011.23082994,0.00012779,2]
[323713819,1714183834554,-150.0,0.00012779,2]
[323713820,1714183834564,-500.0,0.00012779,2]
[323713821,1714183834574,-500.0,0.00012779,2]
[323713822,1714183834583,-500.0,0.00012779,2]
[323713823,1714183834593,-500.0,0.00012779,2]
[323713824,1714183834604,-490.61889608,0.00012779,2]
[323713825,1714183834614,-500.0,0.00012779,2]
[323713826,1714183834624,-509.73877091,0.00012779,2]
[323713827,1714183834635,-500.0,0.00012779,2]
[323713828,1714183834645,-500.0,0.00012779,2]
[323713829,1714183834654,-500.0,0.00012779,2]
[323713830,1714183834663,-500.0,0.00012779,2]
[323713831,1714183834673,-500.0,0.00012779,2]
[323713832,1714183834682,-500.0,0.00012779,2]
[323713833,1714183834693,-319.59834233,0.00012779,2]
[323713834,1714183834702,-500.0,0.00012779,2]
[323713835,1714183834712,-500.0,0.00012779,2]
[323713836,1714183834721,-279.55141488,0.00012779,2]
[323713837,1714183834731,-500.0,0.00012779,2]
[323713838,1714183834740,-537.46775699,0.00012779,2]
[323713839,1714183834756,-1898.49,0.00012779,2]
[323713840,1714183834766,-500.0,0.00012779,2]
[323713841,1714183834775,-552.58518524,0.00012779,2]
[323713842,1714183834785,-841.12,0.00012779,2]
[323713843,1714183834796,-1937.65,0.00012779,2]
[323713844,1714183834806,-500.0,0.00012779,2]
[323713845,1714183834816,-500.0,0.00012779,2]
[323713846,1714183834826,-969.91,0.00012779,2]
[323713847,1714183834836,-500.0,0.00012779,2]
[323713848,1714183834846,-500.0,0.00012779,2]
[323713849,1714183834855,-500.0,0.00012779,2]
[323713850,1714183834864,-500.0,0.00012779,2]
[323713851,1714183834874,-500.0,0.00012779,2]
[323713852,1714183834883,-500.0,0.00012779,2]
[323713853,1714183834892,-535.35084105,0.00012779,2]
[323713854,1714183834902,-736.45,0.00012779,2]
[323713855,1714183834911,-500.0,0.00012779,2]
[323713856,1714183834920,-500.0,0.00012779,2]
[323713857,1714183834930,-1117.46,0.00012779,2]
[323713858,1714183834939,-500.0,0.00012779,2]
[323713859,1714183834949,-500.0,0.00012779,2]
[323713860,1714183834959,-500.0,0.00012779,2]
[323713861,1714183834968,-518.9,0.00012779,2]
[323713862,1714183834977,-500.0,0.00012779,2]
[323713863,1714183834987,-500.0,0.00012779,2]
[323713864,1714183834997,-753.15,0.00012779,2]
[323713865,1714183835007,-500.0,0.00012779,2]
[323713866,1714183835017,-500.0,0.00012779,2]
[323713867,1714183835027,-500.0,0.00012779,2]
[323713868,1714183835037,-335.79172209,0.00012779,2]
[323713869,1714183835046,-500.0,0.00012779,2]
[323713870,1714183835055,-500.0,0.00012779,2]
[323713871,1714183835066,-1182.66,0.00012779,2]
[323713872,1714183835075,-500.0,0.00012779,2]
[323713873,1714183835085,-500.0,0.00012779,2]
[323713874,1714183835332,-500.0,0.00012779,2]
[323713875,1714183835342,-500.0,0.00012779,2]
[323713876,1714183835351,-258.74387544,0.00012779,2]
[323713877,1714183835360,-500.0,0.00012779,2]
[323713878,1714183835370,-500.0,0.00012779,2]
[323713879,1714183835379,-1364.71,0.00012779,2]
[323713880,1714183835389,-533.44,0.00012779,2]
[323713881,1714183835399,-500.0,0.00012779,2]
[323713882,1714183835408,-500.0,0.00012779,2]
[323713883,1714183835417,-549.45,0.00012779,2]
[323713884,1714183835427,-500.0,0.00012779,2]
[323713885,1714183835436,-500.0,0.00012779,2]
[323713886,1714183835445,-500.0,0.00012779,2]
[323713887,1714183835455,-500.0,0.00012779,2]
[323713888,1714183835465,-500.0,0.00012779,2]
[323713889,1714183835474,-1138.49,0.00012779,2]
[323713890,1714183835485,-500.0,0.00012779,2]
[323713891,1714183835494,-500.0,0.00012779,2]
[323713892,1714183835505,-500.0,0.00012779,2]
[323713893,1714183835515,-500.0,0.00012779,2]
[323713894,1714183835524,-1160.09,0.00012779,2]
[323713895,1714183835533,-1604.73,0.00012779,2]
[323713896,1714183835542,-1503.14,0.00012779,2]
[323713897,1714183835552,-1216.84,0.00012779,2]
[323713898,1714183835561,-1243.43,0.00012779,2]
[323713899,1714183835571,-500.0,0.00012779,2]
[323713900,1714183835581,-500.0,0.00012779,2]
[323713901,1714183835592,-500.0,0.00012779,2]
[323713902,1714183835602,-500.0,0.00012779,2]
[323713903,1714183835611,-500.0,0.00012779,2]
[323713904,1714183835621,-500.0,0.00012779,2]
[323713905,1714183835630,-500.0,0.00012779,2]
[323713906,1714183835640,-2780.41,0.00012779,2]
[323713907,1714183835659,-500.0,0.00012779,2]
[323713908,1714183835670,-619.74860795,0.00012779,2]
[323713909,1714183835680,-500.0,0.00012779,2]
[323713910,1714183835690,-4752.34,0.00012779,2]
[323713911,1714183835700,-500.0,0.00012779,2]
[323713912,1714183835709,-500.0,0.00012779,2]
[323713913,1714183835719,-861.66,0.00012779,2]
[323713914,1714183835729,-500.0,0.00012779,2]
[323713915,1714183835739,-500.0,0.00012779,2]
[323713916,1714183835749,-500.0,0.00012779,2]
[323713917,1714183835762,-565.07,0.00012779,2]
[323713918,1714183835772,-500.0,0.00012779,2]
[323713919,1714183835782,-512.95520661,0.00012779,2]
[323713920,1714183835794,-500.0,0.00012779,2]
[323713921,1714183835804,-96625.74873991,0.0001278,2]
[323713922,1714183835820,-1306.02044484,0.0001278,2]
[323713923,1714183835841,-930.38891718,0.0001278,2]
[323713948,1714183840574,-712.6,0.00011875,2]
[323713949,1714183840583,-2287.4,0.00012728,2]
[323713950,1714183840626,-1519.76007798,0.00012728,2]
[323713951,1714183840637,-1887.71737718,0.00012728,2]
[323713952,1714183840648,-774.58000001,0.00012728,2]
[323713979,1714183843552,-259.75352718,0.00012728,2]
[323713980,1714183843562,-500.0,0.00012779,2]
[323713981,1714183843572,-500.0,0.00012779,2]
[323713982,1714183843584,-500.0,0.00012779,2]
[323713983,1714183843596,-4530.44647282,0.0001278,2]
[323713984,1714183843610,-811.45434183,0.0001278,2]
[323713988,1714183846562,-4952.06,0.00012779,2]
[323713989,1714183846574,-6168.1928,0.0001278,2]
[323713990,1714183846589,-359.33188842,0.0001278,2]
[323713991,1714183846619,-162795.77311409,0.0001278,2]
[323713992,1714183846632,-16730.45181081,0.0001278,2]
[323713993,1714184482755,-621.84015726,9.648e-05,2]
[323713994,1714184482775,-207.83486764,9.648e-05,2]
[323713995,1714184482798,-150.0,9.648e-05,2]
[323713996,1714184482817,-150.0,9.648e-05,2]
[323713997,1714184482838,-870.3249751,9.648e-05,2]
[323713998,1714184483990,-2000.0,9.648e-05,2]
[323713999,1714184485294,-2000.0,9.648e-05,2]
[323714000,1714184486449,-2000.0,9.648e-05,2]
[323714001,1714184487644,-2000.0,9.648e-05,2]
[323714002,1714184488854,-2000.0,9.648e-05,2]
[323714004,1714184802630,310.4,9.5e-05,2]
[323714005,1714184869443,1907.91079392,9e-05,2]
[323714012,1714185032175,-2888.27577688,9.647e-05,2]
[323714013,1714185032185,-2379.4251943,0.0001,2]
[323714014,1714185032231,-3994.47293492,0.0001,2]
[323714015,1714185032242,-7978.076391,0.0001,2]
[323714016,1714185032252,-6184.05450343,0.0001,2]
[323714017,1714185032261,-106.54549657,0.00010899,2]
[323714018,1714185032272,-48.45450343,0.00010899,2]
[323714019,1714185032282,-155.0,0.000109,2]
[323714020,1714185032292,-749.77428305,0.00011,2]
[323714021,1714185032301,-548.60484332,0.00011,2]
[323714022,1714185032312,-701.39515668,0.00011,2]
[323714023,1714185032321,-200.0,0.00011,2]
[323714024,1714185032331,-250.0,0.00011238,2]
[323714025,1714185032340,-252.40484332,0.00011293,2]
[323714026,1714185032351,-1623.1694,0.00011293,2]
[323714027,1714185032362,-2000.0,0.00011293,2]
[323714028,1714185032375,-9119.75575668,0.00011293,2]
[323714029,1714185032384,-355.24,0.00011356,2]
[323714030,1714185032393,-952.7296167,0.00011358,2]
[323714031,1714185032412,-2924.7403833,0.00011358,2]
[323714032,1714185032422,-1188.41,0.00011391,2]
[323714033,1714185032430,-170.09,0.00011422,2]
[323714034,1714185032440,-597.45,0.00011467,2]
[323714035,1714185032450,-155.85,0.0001152,2]
[323714036,1714185032459,-640.28,0.00011654,2]
[323714037,1714185032470,-310.4,0.00011763,2]
[323714038,1714185032481,-341.65536927,0.00012,2]
[323714039,1714185032506,-353.09574945,0.00012,2]
[323714048,1714185032736,-469.17,0.00012,2]
[323714049,1714185032752,-586.86043015,0.00012,2]
[323714050,1714185032762,-15088.39919041,0.00012,2]
[323714051,1714185032772,-170.09,0.00012017,2]
[323714052,1714185032781,-409.2085642,0.00012067,2]
[323714053,1714185032790,-1110.87898929,0.00012068,2]
[323714054,1714185032802,-3889.12101071,0.00012068,2]
[323714055,1714185032812,-25.77649472,0.00012069,2]
[323714056,1714185032823,-124.22350528,0.00012069,2]
[323714057,1714185032832,-150.0,0.00012069,2]
[323714058,1714185032842,-350.55,0.00012069,2]
[323714059,1714185032851,-162.87,0.00012069,2]
[323714060,1714185032860,-159.42,0.00012069,2]
[323714061,1714185032870,-350.31,0.00012069,2]
[323714062,1714185032880,-150.0,0.00012069,2]
[323714063,1714185032889,-150.0,0.00012069,2]
[323714064,1714185032899,-150.0,0.00012069,2]
[323714065,1714185032908,-385.55085202,0.00012139,2]
[323714066,1714185032917,-1951.68,0.000123,2]
[323714067,1714185032927,-428.0,0.00012321,2]
[323714068,1714185032937,-522.0,0.00012328,2]
[323714069,1714185032947,-539.0,0.00012328,2]
[323714070,1714185032957,-180.77,0.00012517,2]
[323714071,1714185032966,-645.6256427,0.0001258,2]
[323714072,1714185033059,-193.8647,9.547e-05,2]
[323714073,1714185033068,-1068.00027061,0.0001258,2]
[323714074,1714185033080,-2264.20928669,0.0001258,2]
[323714075,1714185033090,-12741.21248496,0.00012649,2]
[323714076,1714185033099,-207.58478803,0.00012678,2]
[323714077,1714185033110,-7292.41521197,0.00012678,2]
[323714078,1714185033119,-2677.9181,0.00012679,2]
[323714079,1714185033128,-1386.24753353,0.00012679,2]
[323714098,1714185037669,-43063.32946647,0.00012679,2]
[323714101,1714185037679,-1152.65916644,0.00012679,2]
[323714103,1714185037688,-10000.0,0.0001268,2]
[323714105,1714185037698,-1000.0,0.0001268,2]
[323714107,1714185037707,-18092.0094,0.0001268,2]
[323714110,1714185037717,-2738.1022,0.0001268,2]
[323714112,1714185037728,-469.40147334,0.0001268,2]
[323714114,1714185037737,-290.37600014,0.0001268,2]
[323714116,1714185037747,-186.47526038,0.0001268,2]
[323714118,1714185037756,-1152.65916638,0.00012695,2]
[323714120,1714185037765,-1152.65916638,0.00012711,2]
[323714121,1714185037774,-1152.65916638,0.00012726,2]